fUST/lending_fUST_20250920
["ID","MTS","AMOUNT","RATE_DAILY","PERIOD"]
[386540186,1758370232227,-458.18,0.00020786,2]
[386540188,1758370232237,-480.0,0.00020786,2]
[386540190,1758370232247,-480.0,0.00020786,2]
[386540192,1758370232256,-370.11,0.00020786,2]
[386540193,1758370232266,-398.67170093,0.00020786,2]
[386540194,1758370232275,-480.0,0.00020786,2]
[386540195,1758370232284,-9322.32,0.00020786,2]
[386540196,1758370232294,-480.0,0.00020786,2]
[386540197,1758370232303,-480.0,0.00020786,2]
[386540198,1758370232312,-480.0,0.00020786,2]
[386540199,1758370232321,-300.0,0.00020787,2]
[386540200,1758370232330,-56100.42773736,0.00020788,2]
[386540201,1758370232351,-948.29839736,0.00020788,2]
[386540253,1758370239848,-1048.97,0.00020786,2]
[386540254,1758370239858,-480.0,0.00020786,2]
[386540255,1758370239867,-12527.28521776,0.00020788,2]
[386540256,1758370239879,-2404.68492609,0.00020788,2]
[386540257,1758370239889,-4984.05357076,0.00020788,2]
[386540258,1758370239900,-7361.77220812,0.00020788,2]
[386540259,1758370239911,-111632.15375751,0.00020788,2]
[386540260,1758370239922,-7500.0,0.00020788,2]
[386540268,1758370242938,-480.0,0.00020786,2]
[386540269,1758370242947,-767.89798495,0.00020788,2]
[386540270,1758370242990,-6277.3645427,0.00020788,2]
[386540271,1758370243002,-300.00072039,0.00020788,2]
[386540272,1758370243013,-12233.2663756,0.00020788,2]
[386540274,1758370245964,-480.0,0.00020786,2]
[386540275,1758370245974,-520.0,0.00020788,2]
[386540276,1758370246017,-63227.64221599,0.00020788,2]
[386540277,1758370246026,-29473.10092761,0.00020788,2]
[386540278,1758370246036,-480.0,0.00020788,2]
[386540279,1758370246046,-480.0,0.00020788,2]
[386540280,1758370246055,-480.0,0.00020788,2]
[386540281,1758370246064,-480.0,0.00020788,2]
[386540282,1758370246074,-480.0,0.00020788,2]
[386540283,1758370246083,-168.30863916,0.00020788,2]
[386540284,1758370246093,-480.0,0.00020788,2]
[386540285,1758370246102,-480.0,0.00020788,2]
[386540286,1758370246111,-480.0,0.00020788,2]
[386540287,1758370246120,-570.64286786,0.00020788,2]
[386540288,1758370246130,-480.0,0.00020788,2]
[386540289,1758370246139,-480.0,0.00020788,2]
[386540290,1758370246149,-480.0,0.00020788,2]
[386540291,1758370246158,-487.37284984,0.00020788,2]
[386540292,1758370246168,-485.63089867,0.00020788,2]
[386540293,1758370246177,-480.0,0.00020788,2]
[386540295,1758370246187,-480.0,0.00020788,2]
[386540297,1758370246197,-480.0,0.00020788,2]
[386540298,1758370246206,-414.68107342,0.00020788,2]
[386540299,1758370246216,-480.0,0.00020788,2]
[386540300,1758370246225,-480.0,0.00020788,2]
[386540301,1758370246235,-480.0,0.00020788,2]
[386540302,1758370246245,-480.0,0.00020788,2]
[386540303,1758370246255,-480.0,0.00020788,2]
[386540304,1758370246264,-480.370066,0.00020788,2]
[386540305,1758370246273,-480.0,0.00020788,2]
[386540306,1758370246283,-480.0,0.00020788,2]
[386540307,1758370246292,-488.98413107,0.00020788,2]
[386540308,1758370246301,-480.0,0.00020788,2]
[386540309,1758370246311,-480.0,0.00020788,2]
[386540310,1758370246320,-480.0,0.00020788,2]
[386540311,1758370246329,-480.0,0.00020788,2]
[386540312,1758370246339,-480.0,0.00020788,2]
[386540313,1758370246348,-251.88,0.00020788,2]
[386540314,1758370246358,-482.51544923,0.00020788,2]
[386540315,1758370246370,-480.0,0.00020788,2]
[386540316,1758370246379,-480.0,0.00020788,2]
[386540317,1758370246389,-480.0,0.00020788,2]
[386540318,1758370246399,-238.7117201,0.00020788,2]
[386540319,1758370246409,-480.0,0.00020788,2]
[386540320,1758370246419,-480.0,0.00020788,2]
[386540321,1758370246429,-175.789,0.00020788,2]
[386540322,1758370246440,-480.0,0.00020788,2]
[386540323,1758370246450,-480.0,0.00020788,2]
[386540324,1758370246459,-480.0,0.00020788,2]
[386540325,1758370246469,-494.92236936,0.00020788,2]
[386540326,1758370246478,-480.0,0.00020788,2]
[386540327,1758370246487,-480.0,0.00020788,2]
[386540328,1758370246497,-480.0,0.00020788,2]
[386540329,1758370246506,-480.0,0.00020788,2]
[386540330,1758370246516,-480.0,0.00020788,2]
[386540331,1758370246525,-773.69,0.00020788,2]
[386540332,1758370246535,-480.0,0.00020788,2]
[386540333,1758370246544,-482.38488293,0.00020788,2]
[386540334,1758370246553,-480.0,0.00020788,2]
[386540335,1758370246562,-480.0,0.00020788,2]
[386540336,1758370246572,-480.0,0.00020788,2]
[386540337,1758370246581,-484.6061522,0.00020788,2]
[386540338,1758370246590,-480.0,0.00020788,2]
[386540339,1758370246600,-480.0,0.00020788,2]
[386540340,1758370246609,-480.0,0.00020788,2]
[386540341,1758370246619,-3876.5,0.00020788,2]
[386540342,1758370246628,-480.0,0.00020788,2]
[386540343,1758370246638,-480.0,0.00020788,2]
[386540344,1758370246647,-480.0,0.00020788,2]
[386540345,1758370246657,-628.86,0.00020788,2]
[386540346,1758370246667,-485.18746621,0.00020788,2]
[386540347,1758370246676,-480.0,0.00020788,2]
[386540348,1758370246685,-1671.2429959,0.00020789,2]
[386540349,1758370246694,-2474.4125056,0.00020789,2]
[386540350,1758370246703,-354.4298465,0.00020789,2]
[386540351,1758370246713,-500.0,0.00020797,2]
[386540352,1758370246723,-500.0,0.000208,2]
[386540353,1758370246733,-475.70311964,0.00020825,2]
[386540354,1758370246746,-706.95362861,0.00020882,2]
[386540355,1758370246757,-2824.98669992,0.00020882,2]
[386540356,1758370246766,-541.66994878,0.00020882,2]
[386540357,1758370246776,-300.02303397,0.00020882,2]
[386540358,1758370246785,-1198.89204375,0.00020882,2]
[386540359,1758370246795,-480.0,0.00020888,2]
[386540360,1758370246804,-480.0,0.00020888,2]
[386540361,1758370246814,-810.51,0.00020888,2]
[386540362,1758370246823,-480.0,0.00020888,2]
[386540363,1758370246835,-500.0,0.00020889,10]
[386540364,1758370246845,-157.24661627,0.00020889,10]
[386540365,1758370246855,-151.0,0.00020889,10]
[386540366,1758370246866,-151.0,0.00020889,10]
[386540367,1758370246875,-157.17285397,0.00020889,10]
[386540368,1758370246884,-157.1731224,0.00020889,10]
[386540369,1758370246893,-157.0,0.00020889,10]
[386540370,1758370246902,-151.0,0.00020889,10]
[386540371,1758370246912,-500.0,0.00020889,10]
[386540372,1758370246922,-500.0,0.00020889,10]
[386540373,1758370246932,-172.16616004,0.00020889,10]
[386540374,1758370246942,-176.87494805,0.00020889,10]
[386540375,1758370246951,-151.0,0.00020889,2]
[386540376,1758370246961,-454.0,0.00020889,10]
[386540377,1758370246971,-500.0,0.00020889,10]
[386540378,1758370246981,-151.0,0.00020889,10]
[386540379,1758370246991,-460.98,0.0002089,2]
[386540380,1758370247002,-262.0,0.00020894,2]
[386540381,1758370247013,-616.0,0.00020908,2]
[386540382,1758370247022,-523.0,0.00020933,2]
[386540383,1758370247033,-616.0,0.0002095,2]
[386540384,1758370247043,-475.70311964,0.00020961,2]
[386540385,1758370247053,-262.0,0.00020967,2]
[386540386,1758370247063,-860.18220673,0.00020972,2]
[386540387,1758370247074,-100000.0,0.0002099,2]
[386540388,1758370247084,-151.0,0.0002099,2]
[386540389,1758370247094,-151.0,0.0002099,2]
[386540390,1758370247103,-151.0,0.0002099,2]
[386540391,1758370247112,-225.000263,0.0002099,2]
[386540392,1758370247123,-151.0,0.0002099,2]
[386540393,1758370247132,-151.0,0.0002099,2]
[386540394,1758370247142,-151.0,0.0002099,2]
[386540395,1758370247151,-151.0,0.0002099,2]
[386540396,1758370247160,-151.0,0.0002099,2]
[386540397,1758370247170,-153.077719,0.0002099,2]
[386540398,1758370247179,-151.38717,0.0002099,2]
[386540399,1758370247189,-151.0,0.0002099,2]
[386540400,1758370247199,-151.0,0.0002099,2]
[386540401,1758370247208,-151.0,0.0002099,2]
[386540402,1758370247217,-151.0,0.0002099,2]
[386540403,1758370247227,-151.0,0.0002099,2]
[386540404,1758370247236,-151.0,0.0002099,2]
[386540405,1758370247246,-151.0,0.0002099,2]
[386540406,1758370247255,-151.0,0.0002099,2]
[386540407,1758370247350,-151.0,0.0002099,2]
[386540408,1758370247362,-151.0,0.0002099,2]
[386540409,1758370247372,-151.0,0.0002099,2]
[386540410,1758370247382,-151.0,0.0002099,2]
[386540411,1758370247391,-151.368932,0.0002099,2]
[386540412,1758370247401,-151.0,0.0002099,2]
[386540413,1758370247410,-151.0,0.0002099,2]
[386540414,1758370247420,-151.0,0.0002099,2]
[386540415,1758370247429,-151.0,0.0002099,2]
[386540416,1758370247439,-281.181374,0.0002099,2]
[386540417,1758370247448,-281.181374,0.0002099,2]
[386540418,1758370247457,-281.181374,0.0002099,2]
[386540419,1758370247467,-281.181374,0.0002099,2]
[386540420,1758370247476,-151.0,0.0002099,2]
[386540421,1758370247486,-151.0,0.0002099,2]
[386540422,1758370247495,-151.0,0.0002099,2]
[386540423,1758370247504,-151.0,0.0002099,2]
[386540424,1758370247514,-151.0,0.0002099,2]
[386540425,1758370247523,-151.0,0.0002099,2]
[386540426,1758370247533,-151.0,0.0002099,2]
[386540427,1758370247543,-151.0,0.0002099,2]
[386540428,1758370247552,-151.0,0.0002099,2]
[386540429,1758370247562,-151.0,0.0002099,2]
[386540430,1758370247571,-177.159748,0.0002099,2]
[386540431,1758370247581,-177.159748,0.0002099,2]
[386540432,1758370247591,-177.159748,0.0002099,2]
[386540433,1758370247600,-177.159748,0.0002099,2]
[386540434,1758370247610,-151.0,0.0002099,2]
[386540435,1758370247619,-379.849398,0.0002099,2]
[386540436,1758370247629,-151.0,0.0002099,2]
[386540437,1758370247639,-379.849398,0.0002099,2]
[386540438,1758370247649,-151.0,0.0002099,2]
[386540439,1758370247659,-379.849398,0.0002099,2]
[386540440,1758370247668,-379.849398,0.0002099,2]
[386540441,1758370247679,-151.0,0.0002099,2]
[386540442,1758370247689,-151.0,0.0002099,2]
[386540443,1758370247699,-151.0,0.0002099,2]
[386540444,1758370247708,-151.0,0.0002099,2]
[386540445,1758370247718,-151.0,0.0002099,2]
[386540446,1758370247727,-151.0,0.0002099,2]
[386540447,1758370247739,-151.0,0.0002099,2]
[386540448,1758370247748,-151.0,0.0002099,2]
[386540449,1758370247760,-151.0,0.0002099,2]
[386540450,1758370247769,-151.0,0.0002099,2]
[386540451,1758370247779,-151.0,0.0002099,2]
[386540452,1758370247788,-168.933914,0.0002099,2]
[386540453,1758370247798,-151.0,0.0002099,2]
[386540454,1758370247807,-168.933914,0.0002099,2]
[386540455,1758370247817,-168.933914,0.0002099,2]
[386540456,1758370247827,-168.933914,0.0002099,2]
[386540457,1758370247836,-151.0,0.0002099,2]
[386540458,1758370247845,-151.0,0.0002099,2]
[386540459,1758370247855,-151.0,0.0002099,2]
[386540460,1758370247865,-151.0,0.0002099,2]
[386540461,1758370247874,-164.894467,0.0002099,2]
[386540462,1758370247884,-151.0,0.0002099,2]
[386540463,1758370247894,-179.556115,0.0002099,2]
[386540464,1758370247905,-780.647237,0.0002099,2]
[386540465,1758370247915,-780.647237,0.0002099,2]
[386540466,1758370247924,-780.647237,0.0002099,2]
[386540467,1758370247933,-780.647237,0.0002099,2]
[386540468,1758370247943,-151.0,0.0002099,2]
[386540469,1758370247953,-299.02596,0.0002099,2]
[386540470,1758370247963,-151.0,0.0002099,2]
[386540471,1758370247972,-151.0,0.0002099,2]
[386540472,1758370247981,-151.0,0.0002099,2]
[386540473,1758370247990,-151.0,0.0002099,2]
[386540474,1758370247999,-151.0,0.0002099,2]
[386540475,1758370248009,-151.0,0.0002099,2]
[386540476,1758370248018,-151.0,0.0002099,2]
[386540477,1758370248027,-151.0,0.0002099,2]
[386540478,1758370248037,-182.89293,0.0002099,2]
[386540479,1758370248046,-182.89293,0.0002099,2]
[386540480,1758370248056,-182.89293,0.0002099,2]
[386540481,1758370248066,-182.89293,0.0002099,2]
[386540482,1758370248076,-151.0,0.0002099,2]
[386540483,1758370248086,-151.0,0.0002099,2]
[386540484,1758370248096,-151.354919,0.0002099,2]
[386540485,1758370248106,-151.0,0.0002099,2]
[386540486,1758370248116,-151.0,0.0002099,2]
[386540487,1758370248125,-151.0,0.0002099,2]
[386540488,1758370248135,-151.0,0.0002099,2]
[386540489,1758370248145,-151.0,0.0002099,2]
[386540490,1758370248154,-151.0,0.0002099,2]
[386540491,1758370248164,-151.0,0.0002099,2]
[386540492,1758370248174,-151.0,0.0002099,2]
[386540493,1758370248183,-248.164574,0.0002099,2]
[386540494,1758370248198,-248.164574,0.0002099,2]
[386540495,1758370248212,-248.164574,0.0002099,2]
[386540496,1758370248226,-248.164574,0.0002099,2]
[386540497,1758370248238,-151.0,0.0002099,2]
[386540498,1758370248252,-151.0,0.0002099,2]
[386540499,1758370248267,-2210.72690015,0.00021,5]
[386540500,1758370248467,-3080.25263413,0.00021,5]
[386540501,1758370248479,-151.0,0.00021,4]
[386540502,1758370248493,-162.0715699,0.00021,2]
[386540503,1758370248505,-162.0715699,0.00021,2]
[386540504,1758370248517,-585.5584834,0.00021,2]
[386540505,1758370248530,-111.05798387,0.00021,2]
[386540506,1758370249619,1131.74,0.00020787,2]
[386540507,1758370249663,480.0,0.00020786,2]
[386540508,1758370255766,480.0,0.00020786,2]
[386540509,1758370255906,497.45311648,0.00020786,2]
[386540510,1758370256096,480.0,0.00020786,2]
[386540511,1758370256221,480.0,0.00020786,2]
[386540512,1758370257086,211.85957672,0.00020787,2]
[386540513,1758370299263,-480.0,0.00020786,2]
[386540514,1758370299293,-480.0,0.00020786,2]
[386540515,1758370299322,-480.0,0.00020786,2]
[386540516,1758370299349,-480.0,0.00020786,2]
[386540517,1758370299383,-480.0,0.00020786,2]
[386540518,1758370299412,-480.0,0.00020786,2]
[386540519,1758370299442,-480.0,0.00020786,2]
[386540520,1758370299472,-480.0,0.00020786,2]
[386540521,1758370299499,-480.0,0.00020786,2]
[386540522,1758370299531,-446.34,0.00020786,2]
[386540523,1758370299587,-467.33,0.00020786,2]
[386540524,1758370299615,-502.49670138,0.00020786,2]
[386540525,1758370299645,-480.0,0.00020787,2]
[386540526,1758370299675,-480.0,0.00020787,2]
[386540527,1758370299703,-486.57752314,0.00020787,2]
[386540528,1758370299732,-484.53124595,0.00020787,2]
[386540529,1758370299767,-832.99,0.00020787,2]
[386540530,1758370299800,-480.0,0.00020788,2]
[386540531,1758370299833,-288.96950757,0.000208,2]
[386540532,1758370299861,-494.22004392,0.000208,2]
[386540533,1758370300027,-5.77995608,0.000208,2]
[386540534,1758370300054,-506.00856761,0.00020882,2]
[386540535,1758370300622,-4043.42470987,0.0002096,3]
[386540536,1758370307029,-480.0,0.00020786,2]
[386540537,1758370307059,-480.0,0.00020786,2]
[386540538,1758370307090,-960.12,0.00020787,2]
[386540539,1758370307155,-6159.77,0.0002096,3]
[386540540,1758370307184,-10000.01,0.0002096,3]
[386540541,1758370312952,277.77,0.00019327,2]
[386540542,1758370313403,555.53,0.00020247,2]
[386540543,1758370337111,-300.0,0.00020785,2]
[386540544,1758370337141,-1200.0,0.00020785,2]
[386540545,1758370337171,-481.53316112,0.00020786,2]
[386540546,1758370337201,-755.27,0.00020786,2]
[386540547,1758370337232,-762.94,0.00020786,2]
[386540548,1758370337260,-480.0,0.00020786,2]
[386540549,1758370337288,-494.01694321,0.00020786,2]
[386540550,1758370337423,-1052.48979134,0.00020786,2]
[386540551,1758370347134,-684.30020866,0.00020786,2]
[386540552,1758370347166,-480.0,0.00020786,2]
[386540553,1758370347196,-488.6797101,0.00020786,2]
[386540554,1758370347227,-482.9168936,0.00020786,2]
[386540555,1758370347257,-493.66946441,0.00020786,2]
[386540556,1758370347288,-480.0,0.00020786,2]
[386540557,1758370347320,-776.74,0.00020786,2]
[386540558,1758370347350,-480.0,0.00020786,2]
[386540559,1758370347380,-262.72057201,0.00020786,2]
[386540560,1758370347539,-741.95630244,0.00020786,2]
[386540561,1758370357136,-480.0,0.00020786,2]
[386540562,1758370357167,-480.0,0.00020786,2]
[386540563,1758370357197,-480.0,0.00020786,2]
[386540564,1758370357227,-480.0,0.00020787,2]
[386540565,1758370357258,-480.0,0.00020787,2]
[386540566,1758370357288,-539.64,0.00020787,2]
[386540567,1758370357324,-480.0,0.00020787,2]
[386540568,1758370357356,-480.0,0.00020787,2]
[386540569,1758370357385,-181.13,0.00020787,2]
[386540570,1758370357416,-480.0,0.00020787,2]
[386540571,1758370357446,-398.47,0.00020788,2]
[386540572,1758370357625,-81.53,0.00020788,2]
[386540573,1758370389320,-300.0,0.00020785,2]
[386540574,1758370389352,-456.1,0.00020786,2]
[386540575,1758370389383,-480.0,0.00020786,2]
[386540576,1758370389413,-484.30409549,0.00020786,2]
[386540577,1758370389447,-480.0,0.00020786,2]
[386540578,1758370389477,-480.0,0.00020786,2]
[386540579,1758370389510,-480.0,0.00020786,2]
[386540580,1758370389541,-326.04,0.00020786,2]
[386540581,1758370389572,-799.7,0.00020786,2]
[386540582,1758370389601,-234.57582968,0.00020786,2]
[386540583,1758370389631,-478.57014966,0.00020786,2]
[386540584,1758370389728,-1.42985034,0.00020786,2]
[386540585,1758370389757,-480.0,0.00020786,2]
[386540586,1758370389786,-480.0,0.00020786,2]
[386540587,1758370389818,-480.0,0.00020786,2]
[386540588,1758370389846,-480.0,0.00020786,2]
[386540589,1758370389875,-480.0,0.00020786,2]
[386540590,1758370389904,-374.17506121,0.00020786,2]
[386540591,1758370390038,-482.54867448,0.00020786,2]
[386540592,1758370390069,-480.0,0.00020786,2]
[386540593,1758370390099,-480.0,0.00020787,2]
[386540594,1758370390129,-480.0,0.00020787,2]
[386540595,1758370390159,-123.70282794,0.00020787,2]
[386540596,1758370390542,-356.29717206,0.00020787,2]
[386540597,1758370390551,-1.42985034,0.00020787,2]
[386540600,1758370395396,267.16,0.00019324,2]
[386540601,1758370395844,534.32,0.00020244,2]
[386540602,1758370397207,-480.0,0.00020786,2]
[386540603,1758370397238,-480.0,0.00020786,2]
[386540604,1758370397269,-480.0,0.00020786,2]
[386540605,1758370397300,-480.0,0.00020786,2]
[386540606,1758370397330,-480.0,0.00020786,2]
[386540607,1758370397360,-478.57014966,0.00020787,2]
[386540608,1758370397392,-483.80239424,0.00020787,2]
[386540609,1758370397423,-480.0,0.00020787,2]
[386540610,1758370397458,-480.0,0.00020787,2]
[386540611,1758370397489,-483.76345548,0.00020787,2]
[386540612,1758370397614,-480.0,0.00020786,2]
[386540613,1758370397646,-480.0,0.00020787,2]
[386540614,1758370397676,-486.66550178,0.00020788,2]
[386540615,1758370397708,-1237.73,0.00020788,2]
[386540616,1758370397737,-497.55366561,0.00020788,2]
[386540617,1758370397767,-484.66466944,0.00020788,2]
[386540618,1758370397795,-480.0,0.00020788,2]
[386540619,1758370397924,-236.09,0.00020788,2]
[386540620,1758370397954,-480.0,0.00020788,2]
[386540621,1758370398080,-4236.55,0.00020788,2]
[386540622,1758370398110,-727.88300598,0.00020882,2]
[386540623,1758370398291,-480.0,0.00020786,2]
[386540624,1758370398322,-721.57,0.00020888,2]
[386540625,1758370398350,-2439.93227859,0.0002096,3]
[386540626,1758370398535,-2717.00544282,0.0002096,3]
[386540627,1758370398792,-734.91416596,0.0002096,2]
[386540628,1758370398830,-2717.00544282,0.0002096,2]
[386540629,1758370398849,-4565.99911436,0.0002096,2]
[386540630,1758370398886,-10000.01,0.0002096,2]
[386540631,1758370398909,-10000.01,0.0002096,2]
[386540632,1758370398935,-10000.01,0.0002096,2]
[386540633,1758370398955,-10000.01,0.0002096,2]
[386540634,1758370398970,-10000.01,0.0002096,2]
[386540635,1758370401016,825.38588647,0.000199,2]
[386540636,1758370407273,-448.44705525,0.00020786,2]
[386540637,1758370407304,-487.51401817,0.00020786,2]
[386540638,1758370407434,-480.0,0.00020786,2]
[386540639,1758370407463,-480.0,0.00020786,2]
[386540640,1758370407497,-982.6,0.00020787,2]
[386540641,1758370407527,-296.80754975,0.00020787,2]
[386540642,1758370407557,-480.0,0.00020788,2]
[386540643,1758370407705,-2689.27275366,0.0002095,10]
[386540644,1758370407727,-7678.84724634,0.0002095,10]
[386540645,1758370407737,-2321.16275366,0.0002096,2]
[386540646,1758370407750,-10000.01,0.0002096,2]
[386540647,1758370407775,-10000.01,0.0002096,2]
[386540648,1758370408100,-10000.01,0.0002096,2]
[386540649,1758370408226,-10000.01,0.0002096,2]
[386540650,1758370408383,-10000.01,0.0002096,2]
[386540651,1758370408612,-10000.01,0.0002096,2]
[386540652,1758370408734,-10000.01,0.0002096,2]
[386540653,1758370408859,-10000.01,0.0002096,2]
[386540656,1758370447301,168.0,0.00020546,2]
[386540657,1758370458167,453.86465756,0.00020443,4]
[386540658,1758370458230,151.31828955,0.00020648,4]
[386540659,1758370477241,256.96,0.00019339,2]
[386540660,1758370477352,-1078.0,0.00020773,2]
[386540661,1758370477383,-300.0,0.00020785,2]
[386540662,1758370477412,-480.0,0.00020786,2]
[386540663,1758370477442,-480.0,0.00020786,2]
[386540664,1758370477471,-598.67406893,0.00020786,2]
[386540665,1758370477501,-480.0,0.00020786,2]
[386540666,1758370477529,-480.0,0.00020786,2]
[386540667,1758370477560,-480.0,0.00020786,2]
[386540668,1758370477588,-480.0,0.00020786,2]
[386540669,1758370477684,-480.0,0.00020786,2]
[386540670,1758370477715,-2282.17,0.00020786,2]
[386540671,1758370477744,-525.7923032,0.00020786,2]
[386540672,1758370477772,-480.0,0.00020786,2]
[386540673,1758370477801,-480.0,0.00020786,2]
[386540674,1758370477829,-480.0,0.00020786,2]
[386540675,1758370477858,-155.89302999,0.00020786,2]
[386540676,1758370477975,-480.0,0.00020786,2]
[386540677,1758370478006,-480.0,0.00020786,2]
[386540678,1758370478035,-483.53363682,0.00020786,2]
[386540679,1758370478064,-323.87404249,0.00020786,2]
[386540680,1758370478195,-480.0,0.00020786,2]
[386540681,1758370478228,-480.0,0.00020786,2]
[386540682,1758370478268,-556.72643848,0.00020786,2]
[386540683,1758370478302,-480.0,0.00020786,2]
[386540684,1758370478331,-1158.34,0.00020786,2]
[386540685,1758370478416,513.92,0.0002026,2]
[386540686,1758370478534,-480.0,0.00020786,2]
[386540687,1758370478569,-484.35572372,0.00020786,2]
[386540688,1758370478598,-480.0,0.00020786,2]
[386540689,1758370478627,-489.59160379,0.00020786,2]
[386540690,1758370478657,-481.89372087,0.00020786,2]
[386540691,1758370478686,-482.28238903,0.00020786,2]
[386540692,1758370478715,-480.0,0.00020786,2]
[386540693,1758370478745,-484.90621783,0.00020787,2]
[386540694,1758370478774,-480.0,0.00020787,2]
[386540695,1758370478805,-486.83180795,0.00020787,2]
[386540696,1758370478959,-480.0,0.00020787,2]
[386540697,1758370478991,-2128.55,0.00020787,2]
[386540698,1758370479021,-480.0,0.00020787,2]
[386540699,1758370479052,-559.54,0.00020787,2]
[386540700,1758370479081,-480.0,0.00020787,2]
[386540701,1758370479110,-480.0,0.00020787,2]
[386540702,1758370479140,-303.83,0.00020788,2]
[386540703,1758370479859,-244.71303548,0.00020786,2]
[386540704,1758370479874,-295.68696452,0.00020786,2]
[386540705,1758370479883,-176.17,0.00020788,2]
[386540706,1758370479893,-8.14303548,0.00020788,2]
[386540707,1758370479910,-471.85696452,0.00020788,2]
[386540708,1758370479920,-8.14303548,0.00020788,2]
[386540710,1758370517425,-300.0,0.00020785,2]
[386540711,1758370517457,-1200.0,0.00020785,2]
[386540712,1758370517486,-485.73007938,0.00020786,2]
[386540713,1758370517516,-480.0,0.00020786,2]
[386540714,1758370517548,-846.03,0.00020786,2]
[386540715,1758370517582,-480.0,0.00020786,2]
[386540716,1758370517612,-480.0,0.00020786,2]
[386540717,1758370517643,-514.44,0.00020786,2]
[386540718,1758370517833,-427.60984124,0.00020786,2]
[386540719,1758370537416,-52.39015876,0.00020786,2]
[386540720,1758370537446,-480.0,0.00020786,2]
[386540721,1758370537477,-480.0,0.00020786,2]
[386540722,1758370537507,-480.0,0.00020786,2]
[386540723,1758370537537,-480.0,0.00020786,2]
[386540724,1758370537569,-822.96,0.00020786,2]
[386540725,1758370537599,-480.0,0.00020786,2]
[386540726,1758370537628,-480.0,0.00020786,2]
[386540727,1758370537658,-480.0,0.00020786,2]
[386540728,1758370537688,-480.0,0.00020786,2]
[386540729,1758370537722,-89.30968248,0.00020786,2]
[386540730,1758370537837,-390.69031752,0.00020786,2]
[386540731,1758370537867,-480.0,0.00020786,2]
[386540732,1758370537899,-1284.64,0.00020787,2]
[386540733,1758370537927,-480.0,0.00020787,2]
[386540734,1758370537957,-480.0,0.00020787,2]
[386540735,1758370537987,-197.71,0.00020787,2]
[386540736,1758370538017,-480.0,0.00020787,2]
[386540737,1758370538046,-500.0,0.00020787,2]
[386540738,1758370538075,-500.0,0.00020787,2]
[386540739,1758370538379,-430.69031752,0.00020786,2]
[386540740,1758370538395,-413.92936496,0.00020786,2]
[386540741,1758370557425,-1071.66031752,0.00020786,2]
[386540742,1758370557456,-2728.3471849,0.00020786,2]
[386540743,1758370557487,-480.0,0.00020786,2]
[386540744,1758370557517,-480.0,0.00020786,2]
[386540745,1758370557610,-479.99499516,0.00020786,2]
[386540746,1758370557644,-0.00500484,0.00020786,2]
[386540747,1758370557677,-480.0,0.00020786,2]
[386540748,1758370557708,-500.0,0.00020787,2]
[386540749,1758370557740,-500.0,0.00020787,2]
[386540750,1758370557772,-598.8490797,0.00020787,2]
[386540751,1758370557802,-480.0,0.00020787,2]
[386540752,1758370557943,-480.0,0.00020787,2]
[386540753,1758370557978,-952.09,0.00020787,2]
[386540754,1758370558008,-480.0,0.00020787,2]